{"text_format":"3","workbook":"xlsx","n_sheets":1,"sheets":["免提交"],"not_rendered":{"defined_names":3},"read":"whole","date_system":"1900"}

{"sheet":"免提交","index":0,"n_rows":191,"n_cols":9,"rows_kept":191,"merged":[[0,0,0,8],[2,0,18,0],[2,1,3,1],[2,2,3,2],[4,1,5,1],[4,2,5,2],[6,1,7,1],[6,2,7,2],[11,1,12,1],[11,2,12,2],[13,1,14,1],[13,2,14,2],[16,1,17,1],[16,2,17,2],[19,0,141,0],[20,1,21,1],[20,2,21,2],[22,1,23,1],[22,2,23,2],[24,1,25,1],[24,2,25,2],[26,1,28,1],[26,2,28,2],[30,1,31,1],[30,2,31,2],[33,1,34,1],[33,2,34,2],[36,1,37,1],[36,2,37,2],[40,1,41,1],[40,2,41,2],[42,1,43,1],[42,2,43,2],[44,1,45,1],[44,2,45,2],[46,1,47,1],[46,2,47,2],[49,1,51,1],[49,2,51,2],[53,1,54,1],[53,2,54,2],[55,1,56,1],[55,2,56,2],[57,1,58,1],[57,2,58,2],[60,1,61,1],[60,2,61,2],[62,1,63,1],[62,2,63,2],[64,1,65,1],[64,2,65,2],[67,1,68,1],[67,2,68,2],[69,1,70,1],[69,2,70,2],[71,1,72,1],[71,2,72,2],[73,1,74,1],[73,2,74,2],[76,1,77,1],[76,2,77,2],[79,1,80,1],[79,2,80,2],[81,1,82,1],[81,2,82,2],[83,1,84,1],[83,2,84,2],[85,1,86,1],[85,2,86,2],[87,1,88,1],[87,2,88,2],[89,1,90,1],[89,2,90,2],[91,1,92,1],[91,2,92,2],[103,1,104,1],[103,2,104,2],[105,1,106,1],[105,2,106,2],[108,1,109,1],[108,2,109,2],[112,1,113,1],[112,2,113,2],[114,1,115,1],[114,2,115,2],[116,1,117,1],[116,2,117,2],[118,1,119,1],[118,2,119,2],[134,1,135,1],[134,2,135,2],[136,1,137,1],[136,2,137,2],[138,1,139,1],[138,2,139,2],[140,1,141,1],[140,2,141,2],[142,0,146,0],[142,1,145,1],[142,2,145,2],[147,0,165,0],[166,0,170,0],[166,1,167,1],[166,2,167,2],[168,1,170,1],[168,2,170,2],[171,0,173,0],[171,1,172,1],[171,2,172,2],[174,0,177,0],[174,1,175,1],[174,2,175,2],[178,0,180,0],[178,1,179,1],[178,2,179,2],[182,0,183,0],[182,1,183,1],[182,2,183,2],[185,0,190,0]]}
["随州市市本级第一批证明事项免提交清单"]
["服务单位","序号","服务事项","序号","证明材料","设立依据","开具单位","免提交方式","备注"]
["随州市住房公积金中心",{"$f":"MAX($B$2:XFD2)+1","v":1},"偿还购房贷款本息提取住房公积金",{"$f":"MAX($D$2:XFD2)+1","v":1},"中华人民共和国居民身份证","《住房公积金管理条例》第二十四条","公安部门","数据共享"]
[{"$nulls":3},2,"中华人民共和国结婚证","《住房公积金管理条例》第二十四条","民政部门","数据共享"]
[null,{"$f":"MAX($B$2:XFD4)+1","v":2},"出境定居提取住房公积金",3,"中华人民共和国居民身份证","《住房公积金管理条例》第二十四条、第二十五条","公安部门","数据共享"]
[{"$nulls":3},4,"户口注销证明或护照签证原件","《住房公积金管理条例》第二十四条、第二十五条","公安部门","数据共享/部门核验"]
[null,{"$f":"MAX($B$2:XFD6)+1","v":3},"房租超出家庭工资收入的规定比例提取住房公积金",5,"中华人民共和国居民身份证","《住房公积金管理条例》第二十四条、第二十五条","公安部门","数据共享"]
[{"$nulls":3},6,"中华人民共和国结婚证","《住房公积金管理条例》第二十四条、第二十五条","民政部门","数据共享"]
[null,{"$f":"MAX($B$2:XFD8)+1","v":4},"个人公积金贷款信息查询",7,"中华人民共和国居民身份证","《住房公积金管理条例》第三十六条","公安部门","数据共享"]
[null,5,"个人公积金账户信息查询",8,"中华人民共和国居民身份证","《住房公积金管理条例》第三十六条","公安部门","数据共享"]
[null,{"$f":"MAX($B$2:XFD10)+1","v":6},"个人住房公积金贷款提前还款",{"$f":"MAX($D$2:XFD10)+1","v":9},"中华人民共和国居民身份证","《住房公积金管理条例》第二十六条、第二十七条","公安部门","数据共享"]
[null,7,"购买自住住房提取住房公积金",10,"中华人民共和国居民身份证","《住房公积金管理条例》第二十四条、第二十五条","公安部门","数据共享"]
[{"$nulls":3},11,"中华人民共和国结婚证","《住房公积金管理条例》第二十四条、第二十五条","民政部门","数据共享"]
[null,8,"建造、翻建、大修自住住房提取住房公积金",12,"中华人民共和国居民身份证","《住房公积金管理条例》第二十四条、第二十五条","公安部门","数据共享"]
[{"$nulls":3},13,"中华人民共和国结婚证","《住房公积金管理条例》第二十四条、第二十五条","民政部门","数据共享"]
[null,9,"完全丧失劳动能力，并与单位终止劳动关系提取住房公积金",14,"中华人民共和国居民身份证","《住房公积金管理条例》第二十四条、第二十五条；业务办事指南","公安部门","数据共享"]
[null,10,"住房公积金贷款审批",15,"中华人民共和国居民身份证","《住房公积金管理条例》第二十六条；业务办事指南","民政部门","数据共享"]
[{"$nulls":3},16,"中华人民共和国结婚证","《住房公积金管理条例》第二十六条；业务办事指南","公安部门","数据共享"]
[null,11,"住房公积金消息提醒",17,"中华人民共和国居民身份证","《住房公积金管理条例》第十一条","公安部门","数据共享"]
["随州市自然资源和城乡建设局（不动产中心业务事项）",12,"补证登记",18,"申请人身份证明（营业执照、法人身份证明、委托书、代理人身份证）","《不动产登记暂行条例实施细则》第七十九条","公安部门/市场监管部门","数据共享","委托他人办理时，委托书仍需提交"]
[null,13,"抵押权变更登记",19,"申请人身份证明（营业执照、法人身份证明、委托书、代理人身份证）","《不动产登记暂行条例实施细则》第八十八条","公安部门/市场监管部门","数据共享","委托他人办理时，委托书仍需提交"]
[{"$nulls":3},20,"中华人民共和国不动产权证书","《不动产登记暂行条例实施细则》第八十八条","自然资源部门","数据共享/部门核验"]
[null,14,"抵押权首次登记",21,"申请人身份证明（营业执照、法人身份证明、委托书、代理人身份证）","《不动产登记暂行条例实施细则》第六十五条、第六十六条","公安部门/市场监管部门","数据共享","委托他人办理时，委托书仍需提交"]
[{"$nulls":3},22,"中华人民共和国不动产权证书","《不动产登记暂行条例实施细则》第六十五条、第六十六条","自然资源部门","数据共享/部门核验"]
[null,15,"抵押权注销登记",23,"申请人身份证明（营业执照、法人身份证明、委托书、代理人身份证）","《不动产登记暂行条例实施细则》第七十条","公安部门/市场监管部门","数据共享","委托他人办理时，委托书仍需提交"]
[{"$nulls":3},24,"中华人民共和国不动产权证书","《不动产登记暂行条例实施细则》第七十条","自然资源部门","数据共享/部门核验"]
[null,16,"抵押权转移登记",25,"申请人身份证明（营业执照、法人身份证明、委托书、代理人身份证）","《不动产登记暂行条例实施细则》第七十四条","公安部门/市场监管部门","数据共享","委托他人办理时，委托书仍需提交"]
[{"$nulls":3},26,"中华人民共和国不动产权证书","《不动产登记暂行条例实施细则》第七十四条","自然资源部门","数据共享/部门核验"]
[{"$nulls":3},27,"抵押登记证明","《不动产登记暂行条例实施细则》第七十四条","自然资源部门","数据共享/部门核验"]
[null,17,"个人国有建设用地使用权及房屋所有权抵押权首次登记",28,"申请人身份证明（营业执照、法人身份证明、委托书、代理人身份证）","《不动产登记暂行条例实施细则》第六十五条、第六十六条","公安部门/市场监管部门","数据共享","委托他人办理时，委托书仍需提交"]
[null,18,"个人国有建设用地使用权及房屋所有权抵押权注销登记",29,"申请人身份证明（营业执照、法人身份证明、委托书、代理人身份证）","《不动产登记暂行条例实施细则》第七十条","公安部门/市场监管部门","数据共享","委托他人办理时，委托书仍需提交"]
[{"$nulls":3},30,"中华人民共和国不动产权证书","《不动产登记暂行条例实施细则》第七十条","自然资源部门","数据共享/部门核验"]
[null,19,"换证登记",31,"申请人身份证明（营业执照、法人身份证明、委托书、代理人身份证）","《不动产登记暂行条例》第十六条、《不动产登记暂行条例实施细则》第二十二条","公安部门/市场监管部门","数据共享","委托他人办理时，委托书仍需提交"]
[null,20,"企业不动产抵押注销登记",32,"申请人身份证明（营业执照、法人身份证明、委托书、代理人身份证）","《不动产登记暂行条例实施细则》第七十条","公安部门/市场监管部门","数据共享","委托他人办理时，委托书仍需提交"]
[{"$nulls":3},33,"中华人民共和国不动产权证书","《不动产登记暂行条例实施细则》第七十条","自然资源部门","数据共享/部门核验"]
[null,21,"企业国有建设用地使用权及房屋所有权抵押权首次登记",34,"申请人身份证明（营业执照、法人身份证明、委托书、代理人身份证）","《不动产登记暂行条例实施细则》第八十八条","公安部门/市场监管部门","数据共享","委托他人办理时，委托书仍需提交"]
[null,22,"预购商品房抵押预告登记转抵押权首次登记",35,"申请人身份证明（营业执照、法人身份证明、委托书、代理人身份证）","《不动产登记暂行条例》第十六条、《不动产登记暂行条例实施细则》第七十八条","公安部门/市场监管部门","数据共享","委托他人办理时，委托书仍需提交"]
[{"$nulls":3},36,"抵押登记证明","《不动产登记暂行条例》第十六条、《不动产登记暂行条例实施细则》第七十八条","自然资源部门","数据共享/部门核验"]
[null,23,"预购商品房抵押预告注销登记",37,"申请人身份证明（营业执照、法人身份证明、委托书、代理人身份证）","《不动产登记暂行条例实施细则》第八十九条","公安部门/市场监管部门","数据共享","委托他人办理时，委托书仍需提交"]
[null,24,"补证登记",38,"申请人身份证明（身份证、营业执照、事业单位法人证书、委托书及委托人身份证等）","《不动产登记暂行条例》第五条、《不动产登记暂行条例实施细则》第六十一条","公安部门/市场监管部门","数据共享","委托他人办理时，委托书仍需提交"]
[null,25,"地役权变更登记",39,"申请人身份证明（身份证、营业执照、事业单位法人证书、委托书及委托人身份证等）","《不动产登记暂行条例》第五条、《不动产登记暂行条例实施细则》第六十一条","公安部门/市场监管部门","数据共享","委托他人办理时，委托书仍需提交"]
[{"$nulls":3},40,"不动产登记证明","《不动产登记暂行条例》第五条、《不动产登记暂行条例实施细则》第六十一条","自然资源部门","数据共享/部门核验"]
[null,26,"地役权首次登记",41,"申请人身份证明（身份证、营业执照、事业单位法人证书、委托书及委托人身份证等）","《不动产登记暂行条例实施细则》第六十条","公安部门/市场监管部门","数据共享","委托他人办理时，委托书仍需提交"]
[{"$nulls":3},42,"中华人民共和国不动产权证书（需役地和供役地）","《不动产登记暂行条例实施细则》第六十条","自然资源部门","数据共享/部门核验"]
[null,27,"地役权注销登记",43,"申请人身份证明（身份证、营业执照、事业单位法人证书、委托书及委托人身份证等）","《不动产登记暂行条例实施细则》第六十三条","公安部门/市场监管部门","数据共享","委托他人办理时，委托书仍需提交"]
[{"$nulls":3},44,"不动产登记证明","《不动产登记暂行条例实施细则》第六十三条","自然资源部门","数据共享/部门核验"]
[null,28,"地役权转移登记",45,"申请人身份证明（身份证、营业执照、事业单位法人证书、委托书及委托人身份证等）","《不动产登记暂行条例实施细则》第六十二条、第六十四条","公安部门/市场监管部门","数据共享","委托他人办理时，委托书仍需提交"]
[{"$nulls":3},46,"不动产登记证明","《不动产登记暂行条例实施细则》第六十二条、第六十四条","自然资源部门","数据共享/部门核验"]
[null,29,"换证登记",47,"申请人身份证明（身份证、营业执照、事业单位法人证书、委托书及委托人身份证等）","《不动产登记暂行条例实施细则》第六十一条","公安部门/市场监管部门","数据共享","委托他人办理时，委托书仍需提交"]
[null,30,"不动产证书夫妻增、减名的转移登记",48,"申请人身份证明（中华人民共和国居民身份证、营业执照、事业单位法人证书、委托书及委托人身份证等）","《不动产登记暂行条例实施细则》第九条、第十条、第二十七条；《不动产登记规程》","公安部门/市场监管部门","数据共享","委托他人办理时，委托书仍需提交"]
[{"$nulls":3},49,"中华人民共和国不动产权证书","《不动产登记暂行条例实施细则》第九条、第十条、第二十七条；《不动产登记规程》","自然资源部门","数据共享/部门核验"]
[{"$nulls":3},50,"中华人民共和国结婚证","《不动产登记暂行条例实施细则》第九条、第十条、第二十七条；《不动产登记规程》","民政部门","数据共享"]
[null,31,"补证登记",51,"申请人身份证明（中华人民共和国居民身份证、营业执照、事业单位法人证书、委托书及委托人身份证等）","《不动产登记暂行条例实施细则》第八十条、《不动产登记规程》","公安部门/市场监管部门","数据共享","委托他人办理时，委托书仍需提交"]
[null,32,"个人持公证书办理房屋继承的转移登记",52,"申请人身份证明（中华人民共和国居民身份证、营业执照、事业单位法人证书、委托书及委托人身份证等）","《不动产登记暂行条例实施细则》第十条、第十四条、第三十八条；《不动产登记规程》","公安部门/市场监管部门","数据共享","委托他人办理时，委托书仍需提交"]
[{"$nulls":3},53,"中华人民共和国不动产权证书","《不动产登记暂行条例实施细则》第十条、第十四条、第三十八条；《不动产登记规程》","自然资源部门","数据共享/部门核验"]
[null,33,"个人持公证书办理房屋受遗赠的转移登记",54,"申请人身份证明（中华人民共和国居民身份证、营业执照、事业单位法人证书、委托书及委托人身份证等）","《不动产登记暂行条例实施细则》第十条、第十四条、第三十八条；《不动产登记规程》","公安部门/市场监管部门","数据共享","委托他人办理时，委托书仍需提交"]
[{"$nulls":3},55,"中华人民共和国不动产权证书","《不动产登记暂行条例实施细则》第十条、第十四条、第三十八条；《不动产登记规程》","自然资源部门","数据共享/部门核验"]
[null,34,"个人存量住宅互换的转移登记",56,"申请人身份证明（中华人民共和国居民身份证、营业执照、事业单位法人证书、委托书及委托人身份证等）","《不动产登记暂行条例实施细则》第二十七条；《不动产登记规程》","公安部门/市场监管部门","数据共享","委托他人办理时，委托书仍需提交"]
[{"$nulls":3},57,"中华人民共和国不动产权证书","《不动产登记暂行条例实施细则》第二十七条；《不动产登记规程》","自然资源部门","数据共享/部门核验"]
[null,35,"个人贷款从开发商购买商品房的转移登记和抵押登记(新房)",58,"申请人身份证明（中华人民共和国居民身份证、营业执照、事业单位法人证书、委托书及委托人身份证等）","《不动产登记暂行条例实施细则》第十六条、第二十七条；《不动产登记规程》","公安部门/市场监管部门","数据共享","委托他人办理时，委托书仍需提交"]
[null,36,"个人贷款买卖存量住宅的转移登记和抵押登记（二手房）",59,"申请人身份证明（中华人民共和国居民身份证、营业执照、事业单位法人证书、委托书及委托人身份证等）","《不动产登记暂行条例实施细则》第十六条、第二十七条；《不动产登记规程》","公安部门/市场监管部门","数据共享","委托他人办理时，委托书仍需提交"]
[{"$nulls":3},60,"中华人民共和国不动产权证书","《不动产登记暂行条例实施细则》第十六条、第二十七条；《不动产登记规程》","自然资源部门","数据共享/部门核验"]
[null,37,"个人房屋灭失注销登记",61,"申请人身份证明（中华人民共和国居民身份证、营业执照、事业单位法人证书、委托书及委托人身份证等）","《不动产登记暂行条例实施细则》第二十八条；《不动产登记规程》","公安部门/市场监管部门","数据共享","委托他人办理时，委托书仍需提交"]
[{"$nulls":3},62,"中华人民共和国不动产权证书","《不动产登记暂行条例实施细则》第二十八条；《不动产登记规程》","自然资源部门","数据共享/部门核验"]
[null,38,"个人房屋赠与的转移登记",63,"申请人身份证明（中华人民共和国居民身份证、营业执照、事业单位法人证书、委托书及委托人身份证等）","《不动产登记暂行条例实施细则》第二十七条、第三十八条；《不动产登记规程》","公安部门/市场监管部门","数据共享","委托他人办理时，委托书仍需提交"]
[{"$nulls":3},64,"中华人民共和国不动产权证书","《不动产登记暂行条例实施细则》第二十七条、第三十八条；《不动产登记规程》","自然资源部门","数据共享/部门核验"]
[null,39,"个人全款从开发商购买商品房的转移登记(新房)",65,"申请人身份证明（中华人民共和国居民身份证、营业执照、事业单位法人证书、委托书及委托人身份证等）","《不动产登记暂行条例实施细则》第二十七条；《不动产登记规程》","公安部门/市场监管部门","数据共享","委托他人办理时，委托书仍需提交"]
[null,40,"个人全款买卖存量住宅的转移登记（二手房）",66,"申请人身份证明（中华人民共和国居民身份证、营业执照、事业单位法人证书、委托书及委托人身份证等）","《不动产登记暂行条例实施细则》第二十七条；《不动产登记规程》","公安部门/市场监管部门","数据共享","委托他人办理时，委托书仍需提交"]
[{"$nulls":3},67,"中华人民共和国不动产权证书","《不动产登记暂行条例实施细则》第二十七条；《不动产登记规程》","自然资源部门","数据共享/部门核验"]
[null,41,"国有建设用地使用权及房屋所有权首次登记",68,"申请人身份证明（中华人民共和国居民身份证、营业执照、事业单位法人证书、委托书及委托人身份证等）","《不动产登记暂行条例实施细则》第三十五条；《不动产登记规程》","公安部门/市场监管部门","数据共享","委托他人办理时，委托书仍需提交"]
[{"$nulls":3},69,"不动产权属证明","《不动产登记暂行条例实施细则》第三十五条；《不动产登记规程》","自然资源部门","数据共享/部门核验"]
[null,42,"国有建设用地使用权及房屋所有权注销登记",70,"申请人身份证明（中华人民共和国居民身份证、营业执照、事业单位法人证书、委托书及委托人身份证等）","《不动产登记暂行条例实施细则》第二十八条；《不动产登记规程》","公安部门/市场监管部门","数据共享","委托他人办理时，委托书仍需提交"]
[{"$nulls":3},71,"中华人民共和国不动产权证书","《不动产登记暂行条例实施细则》第二十八条；《不动产登记规程》","自然资源部门","数据共享/部门核验"]
[null,43,"国有建设用地使用权及房屋所有权转移及抵押权登记（合并办理）",72,"申请人身份证明（中华人民共和国居民身份证、营业执照、事业单位法人证书、委托书及委托人身份证等）","《不动产登记暂行条例实施细则》第三十八条；《不动产登记规程》","公安部门/市场监管部门","数据共享","委托他人办理时，委托书仍需提交"]
[{"$nulls":3},{"$f":"MAX($D$2:XFD74)+1","v":73},"中华人民共和国不动产权证书","《不动产登记暂行条例实施细则》第三十八条；《不动产登记规程》","自然资源部门","数据共享/部门核验"]
[null,{"$f":"MAX($B$2:XFD75)+1","v":44},"换证登记",74,"申请人身份证明（中华人民共和国居民身份证、营业执照、事业单位法人证书、委托书及委托人身份证等）","《不动产登记暂行条例实施细则》第六十一条、《不动产登记规程》","公安部门/市场监管部门","数据共享","委托他人办理时，委托书仍需提交"]
[null,45,"集体建设用地使用权及房屋所有权注销登记",75,"申请人身份证明（中华人民共和国居民身份证、营业执照、事业单位法人证书、委托书及委托人身份证等）","《不动产登记暂行条例实施细则》第四十六条、《不动产登记规程》","公安部门/市场监管部门","数据共享","委托他人办理时，委托书仍需提交"]
[{"$nulls":3},76,"中华人民共和国不动产权证书","《不动产登记暂行条例实施细则》第四十六条、《不动产登记规程》","自然资源部门","数据共享/部门核验"]
[null,46,"集体建设用地使用权及房屋所有权转移登记",77,"申请人身份证明（中华人民共和国居民身份证、营业执照、事业单位法人证书、委托书及委托人身份证等）","《不动产登记暂行条例实施细则》第四十六条、《不动产登记规程》","公安部门/市场监管部门","数据共享","委托他人办理时，委托书仍需提交"]
[null,47,"离婚析产转移登记",78,"申请人身份证明（中华人民共和国居民身份证、营业执照、事业单位法人证书、委托书及委托人身份证等）","《不动产登记暂行条例实施细则》第二十七条、第三十八条、《不动产登记规程》","公安部门/市场监管部门","数据共享","委托他人办理时，委托书仍需提交"]
[{"$nulls":3},79,"中华人民共和国不动产权证书","《不动产登记暂行条例实施细则》第二十七条、第三十八条、《不动产登记规程》","自然资源部门","数据共享/部门核验"]
[null,48,"企业房屋灭失注销登记",80,"申请人身份证明（中华人民共和国居民身份证、营业执照、事业单位法人证书、委托书及委托人身份证等）","《不动产登记暂行条例实施细则》第二十八条；《不动产登记规程》","公安部门/市场监管部门","数据共享","委托他人办理时，委托书仍需提交"]
[{"$nulls":3},81,"中华人民共和国不动产权证书","《不动产登记暂行条例实施细则》第二十八条；《不动产登记规程》","自然资源部门","数据共享/部门核验"]
[null,49,"企业间存量非住宅类的转移登记",82,"申请人身份证明（中华人民共和国居民身份证、营业执照、事业单位法人证书、委托书及委托人身份证等）","《不动产登记暂行条例实施细则》第二十七条；《不动产登记规程》","公安部门/市场监管部门","数据共享","委托他人办理时，委托书仍需提交"]
[{"$nulls":3},83,"中华人民共和国不动产权证书","《不动产登记暂行条例实施细则》第二十七条；《不动产登记规程》","自然资源部门","数据共享/部门核验"]
[null,50,"企业全款从开发商购买商品房的转移登记",84,"申请人身份证明（中华人民共和国居民身份证、营业执照、事业单位法人证书、委托书及委托人身份证等）","《不动产登记暂行条例实施细则》第二十八条；《不动产登记规程》","公安部门/市场监管部门","数据共享","委托他人办理时，委托书仍需提交"]
[{"$nulls":3},85,"中华人民共和国不动产权证书","《不动产登记暂行条例实施细则》第二十八条；《不动产登记规程》","自然资源部门","数据共享/部门核验"]
[null,51,"企业全款买卖存量住宅的转移登记",86,"申请人身份证明（中华人民共和国居民身份证、营业执照、事业单位法人证书、委托书及委托人身份证等）","《不动产登记暂行条例实施细则》第二十七条；《不动产登记规程》","公安部门/市场监管部门","数据共享","委托他人办理时，委托书仍需提交"]
[{"$nulls":3},87,"中华人民共和国不动产权证书","《不动产登记暂行条例实施细则》第二十七条；《不动产登记规程》","自然资源部门","数据共享/部门核验"]
[null,52,"宅基地使用权及房屋所有权注销登记",88,"申请人身份证明（中华人民共和国居民身份证、营业执照、事业单位法人证书、委托书及委托人身份证等）","《不动产登记暂行条例实施细则》第四十条；《不动产登记规程》","公安部门/市场监管部门","数据共享","委托他人办理时，委托书仍需提交"]
[{"$nulls":3},89,"中华人民共和国不动产权证书","《不动产登记暂行条例实施细则》第四十条；《不动产登记规程》","自然资源部门","数据共享/部门核验"]
[null,53,"宅基地使用权及房屋所有权转移登记",90,"申请人身份证明（中华人民共和国居民身份证、营业执照、事业单位法人证书、委托书及委托人身份证等）","《不动产登记暂行条例实施细则》第四十二条；《不动产登记规程》","公安部门/市场监管部门","数据共享","委托他人办理时，委托书仍需提交"]
[{"$nulls":3},91,"中华人民共和国不动产权证书","《不动产登记暂行条例实施细则》第四十二条；《不动产登记规程》","自然资源部门","数据共享/部门核验"]
[null,54,"耕地、林地、草原等土地承包经营权补证登记",92,"申请人身份证明（身份证、营业执照、事业单位法人证书、委托书及委托人身份证等）","《不动产登记暂行条例实施细则》第七十九条；《不动产登记规程》","公安部门/市场监管部门","数据共享","委托他人办理时，委托书仍需提交"]
[null,55,"耕地、林地、草原等土地承包经营权登记",93,"申请人身份证明（身份证、营业执照、事业单位法人证书、委托书及委托人身份证等）","《不动产登记暂行条例实施细则》第四十七条；《不动产登记规程》","公安部门/市场监管部门","数据共享","委托他人办理时，委托书仍需提交"]
[null,56,"耕地、林地、草原等土地承包经营权换证登记",94,"申请人身份证明（身份证、营业执照、事业单位法人证书、委托书及委托人身份证等）","《不动产登记暂行条例实施细则》第四十七条；《不动产登记规程》","公安部门/市场监管部门","数据共享","委托他人办理时，委托书仍需提交"]
[null,57,"国有农用地的使用权补证登记",95,"申请人身份证明（身份证、营业执照、事业单位法人证书、委托书及委托人身份证等）","《不动产登记暂行条例实施细则》第四十九条；《不动产登记规程》","公安部门/市场监管部门","数据共享","委托他人办理时，委托书仍需提交"]
[null,58,"国有农用地的使用权登记",96,"申请人身份证明（身份证、营业执照、事业单位法人证书、委托书及委托人身份证等）","《不动产登记暂行条例实施细则》第四十七条、第五十二条；《不动产登记规程》","公安部门/市场监管部门","数据共享","委托他人办理时，委托书仍需提交"]
[null,59,"国有农用地的使用权换证登记",97,"申请人身份证明（身份证、营业执照、事业单位法人证书、委托书及委托人身份证等）","《不动产登记暂行条例实施细则》第四十七条、第五十二条；《不动产登记规程》","公安部门/市场监管部门","数据共享","委托他人办理时，委托书仍需提交"]
[null,60,"集体土地所有权补证登记",98,"申请人身份证明（身份证、营业执照、事业单位法人证书、委托书及委托人身份证等）","《不动产登记暂行条例实施细则》第四十九条、第五十二条；《不动产登记规程》","公安部门/市场监管部门","数据共享","委托他人办理时，委托书仍需提交"]
[null,{"$f":"MAX($B$2:XFD100)+1","v":61},"集体土地所有权换证登记",{"$f":"MAX($D$2:XFD100)+1","v":99},"申请人身份证明（身份证、营业执照、事业单位法人证书、委托书及委托人身份证等）","《不动产登记暂行条例实施细则》第四十七条、第五十二条；《不动产登记规程》","公安部门/市场监管部门","数据共享","委托他人办理时，委托书仍需提交"]
[null,62,"集体土地所有权变更登记",100,"申请人身份证明（身份证、营业执照、事业单位法人证书、委托书及委托人身份证等）","《不动产登记暂行条例实施细则》第三十二条；《不动产登记规程》","公安部门/市场监管部门","数据共享","委托他人办理时，委托书仍需提交"]
[null,63,"集体土地所有权首次登记",101,"申请人身份证明（身份证、营业执照、事业单位法人证书、委托书及委托人身份证等）","《不动产登记暂行条例实施细则》第三十条；《不动产登记规程》","公安部门/市场监管部门","数据共享","委托他人办理时，委托书仍需提交"]
[null,64,"集体土地所有权注销登记",102,"申请人身份证明（身份证、营业执照、事业单位法人证书、委托书及委托人身份证等）","《不动产登记暂行条例实施细则》第三十二条；《不动产登记规程》","公安部门/市场监管部门","数据共享","委托他人办理时，委托书仍需提交"]
[{"$nulls":3},103,"中华人民共和国不动产权证书","《不动产登记暂行条例实施细则》第三十二条；《不动产登记规程》","自然资源部门","数据共享/部门核验"]
[null,65,"集体土地所有权转移登记",104,"申请人身份证明（身份证、营业执照、事业单位法人证书、委托书及委托人身份证等）","《不动产登记暂行条例实施细则》第三十二条；《不动产登记规程》","公安部门/市场监管部门","数据共享","委托他人办理时，委托书仍需提交"]
[{"$nulls":3},105,"中华人民共和国不动产权证书","《不动产登记暂行条例实施细则》第三十二条；《不动产登记规程》","自然资源部门","数据共享/部门核验"]
[null,66,"建设用地使用权补证登记",106,"申请人身份证明（营业执照、法人身份证明、委托书、代理人身份证）","《不动产登记暂行条例实施细则》第三十七条；《不动产登记规程》","公安部门/市场监管部门","数据共享","委托他人办理时，委托书仍需提交"]
[null,67,"国有建设用地使用权变更登记",107,"申请人身份证明（营业执照、法人身份证明、委托书、代理人身份证）","《不动产登记暂行条例实施细则》第三十七条；《不动产登记规程》","公安部门/市场监管部门","数据共享","委托他人办理时，委托书仍需提交"]
[{"$nulls":3},108,"中华人民共和国不动产权证书","《不动产登记暂行条例实施细则》第三十七条；《不动产登记规程》","自然资源部门","数据共享/部门核验"]
[null,68,"划拨国有建设用地使用权首次登记",109,"申请人身份证明（营业执照、法人身份证明、委托书、代理人身份证）","《不动产登记暂行条例实施细则》第三十四条；《不动产登记规程》","公安部门/市场监管部门","数据共享","委托他人办理时，委托书仍需提交"]
[null,69,"建设用地使用权换证登记",110,"申请人身份证明（营业执照、法人身份证明、委托书、代理人身份证）","《不动产登记暂行条例实施细则》第四十七条、第五十二条；《不动产登记规程》","公安部门/市场监管部门","数据共享","委托他人办理时，委托书仍需提交"]
[null,70,"集体建设用地使用权变更登记",111,"申请人身份证明（营业执照、法人身份证明、委托书、代理人身份证）","《不动产登记暂行条例实施细则》第四十六条；《不动产登记规程》","公安部门/市场监管部门","数据共享","委托他人办理时，委托书仍需提交"]
[{"$nulls":3},112,"中华人民共和国不动产权证书","《不动产登记暂行条例实施细则》第四十六条；《不动产登记规程》","自然资源部门","数据共享/部门核验"]
[null,71,"集体建设用地使用权首次登记",113,"申请人身份证明（营业执照、法人身份证明、委托书、代理人身份证）","《不动产登记暂行条例实施细则》第四十五条；《不动产登记规程》","公安部门/市场监管部门","数据共享","委托他人办理时，委托书仍需提交"]
[{"$nulls":3},114,"中华人民共和国不动产权证书","《不动产登记暂行条例实施细则》第四十五条；《不动产登记规程》","自然资源部门","数据共享/部门核验"]
[null,72,"集体建设用地使用权注销登记",115,"申请人身份证明（营业执照、法人身份证明、委托书、代理人身份证）","《不动产登记暂行条例实施细则》第四十六条；《不动产登记规程》","公安部门/市场监管部门","数据共享","委托他人办理时，委托书仍需提交"]
[{"$nulls":3},116,"中华人民共和国不动产权证书","《不动产登记暂行条例实施细则》第四十六条；《不动产登记规程》","自然资源部门","数据共享/部门核验"]
[null,73,"集体建设用地使用权转移登记",117,"申请人身份证明（营业执照、法人身份证明、委托书、代理人身份证）","《不动产登记暂行条例实施细则》第四十六条；《不动产登记规程》","公安部门/市场监管部门","数据共享","委托他人办理时，委托书仍需提交"]
[{"$nulls":3},118,"中华人民共和国不动产权证书","《不动产登记暂行条例实施细则》第四十六条；《不动产登记规程》","自然资源部门","数据共享/部门核验"]
[null,74,"森林、林木所有权补证登记",119,"申请人身份证明（营业执照、法人身份证明、委托书、代理人身份证）","《不动产登记暂行条例实施细则》第二条、第四十七条；《不动产登记规程》","公安部门/市场监管部门","数据共享","委托他人办理时，委托书仍需提交"]
[null,75,"森林、林木所有权换证登记",120,"申请人身份证明（营业执照、法人身份证明、委托书、代理人身份证）","《不动产登记暂行条例实施细则》第二条、第四十七条；《不动产登记规程》","公安部门/市场监管部门","数据共享","委托他人办理时，委托书仍需提交"]
[null,76,"森林、林木所有权登记",121,"申请人身份证明（营业执照、法人身份证明、委托书、代理人身份证）","《中华人民共和国森林法》第十五条；《不动产登记暂行条例》第三条；《不动产登记规程》","公安部门/市场监管部门","数据共享","委托他人办理时，委托书仍需提交"]
[null,77,"异议登记",122,"申请人身份证明（身份证、营业执照、事业单位法人证书、委托书及委托人身份证等）","《不动产登记暂行条例实施细则》第八十二条；《不动产登记规程》","公安部门/市场监管部门","数据共享","委托他人办理时，委托书仍需提交"]
[null,78,"注销异议登记",123,"申请人身份证明（身份证、营业执照、事业单位法人证书、委托书及委托人身份证等）","《不动产登记暂行条例实施细则》第八十二条；《不动产登记规程》","公安部门/市场监管部门","数据共享","委托他人办理时，委托书仍需提交"]
[null,79,"预告登记的补证登记",124,"申请人身份证明（营业执照、法人身份证明、委托书、代理人身份证）","《不动产登记暂行条例实施细则》第八十六条；《不动产登记规程》","公安部门/市场监管部门","数据共享","委托他人办理时，委托书仍需提交"]
[null,80,"预告登记的换证登记",125,"申请人身份证明（营业执照、法人身份证明、委托书、代理人身份证）","《不动产登记暂行条例实施细则》第八十六条；《不动产登记规程》","公安部门/市场监管部门","数据共享","委托他人办理时，委托书仍需提交"]
[null,81,"预告登记的变更",126,"申请人身份证明（营业执照、法人身份证明、委托书、代理人身份证）","《不动产登记暂行条例实施细则》第八十六条；《不动产登记规程》","公安部门/市场监管部门","数据共享","委托他人办理时，委托书仍需提交"]
[null,82,"预告登记的转移",127,"申请人身份证明（营业执照、法人身份证明、委托书、代理人身份证）","《不动产登记暂行条例实施细则》第八十七条；《不动产登记规程》","公安部门/市场监管部门","数据共享","委托他人办理时，委托书仍需提交"]
[null,83,"预购商品房抵押预告登记",128,"申请人身份证明（营业执照、法人身份证明、委托书、代理人身份证）","《不动产登记暂行条例实施细则》第八十六条；《不动产登记规程》","公安部门/市场监管部门","数据共享","委托他人办理时，委托书仍需提交"]
[null,84,"预购商品房预告登记",129,"申请人身份证明（营业执照、法人身份证明、委托书、代理人身份证）","《不动产登记暂行条例实施细则》第八十六条；《不动产登记规程》","公安部门/市场监管部门","数据共享","委托他人办理时，委托书仍需提交"]
[null,85,"预购商品房预告及抵押预告登记",130,"申请人身份证明（营业执照、法人身份证明、委托书、代理人身份证）","《不动产登记暂行条例实施细则》、《不动产登记规程》","公安部门/市场监管部门","数据共享","委托他人办理时，委托书仍需提交"]
[null,86,"宅基地使用权补证登记",131,"申请人身份证明（营业执照、法人身份证明、委托书、代理人身份证）","《不动产登记暂行条例实施细则》第四十一条、《不动产登记规程》","公安部门/市场监管部门","数据共享","委托他人办理时，委托书仍需提交"]
[null,87,"宅基地使用权换证登记",132,"申请人身份证明（营业执照、法人身份证明、委托书、代理人身份证）","《不动产登记暂行条例实施细则》第四十一条、《不动产登记规程》","公安部门/市场监管部门","数据共享","委托他人办理时，委托书仍需提交"]
[null,88,"宅基地使用权变更登记",133,"申请人身份证明（营业执照、法人身份证明、委托书、代理人身份证）","《不动产登记暂行条例实施细则》第二十六条、《不动产登记规程》","公安部门/市场监管部门","数据共享","委托他人办理时，委托书仍需提交"]
[{"$nulls":3},134,"中华人民共和国不动产权证书","《不动产登记暂行条例实施细则》第二十六条、《不动产登记规程》","自然资源部门","数据共享/部门核验"]
[null,89,"宅基地使用权首次登记",135,"申请人身份证明（营业执照、法人身份证明、委托书、代理人身份证）","《不动产登记暂行条例实施细则》第四十一条、《不动产登记规程》","公安部门/市场监管部门","数据共享","委托他人办理时，委托书仍需提交"]
[{"$nulls":3},136,"中华人民共和国不动产权证书","《不动产登记暂行条例实施细则》第四十一条、《不动产登记规程》","自然资源部门","数据共享/部门核验"]
[null,90,"宅基地使用权注销登记",137,"申请人身份证明（营业执照、法人身份证明、委托书、代理人身份证）","《不动产登记暂行条例实施细则》、《不动产登记规程》","公安部门/市场监管部门","数据共享","委托他人办理时，委托书仍需提交"]
[{"$nulls":3},138,"中华人民共和国不动产权证书","《不动产登记暂行条例实施细则》、《不动产登记规程》","自然资源部门","数据共享/部门核验"]
[null,91,"宅基地使用权转移登记",139,"申请人身份证明（营业执照、法人身份证明、委托书、代理人身份证）","《不动产登记暂行条例实施细则》第四十二条、《不动产登记规程》","公安部门/市场监管部门","数据共享","委托他人办理时，委托书仍需提交"]
[{"$nulls":3},140,"中华人民共和国不动产权证书","《不动产登记暂行条例实施细则》第四十二条、《不动产登记规程》","自然资源部门","数据共享/部门核验"]
["随州市卫生健康委员会",92,"公共场所卫生许可（新办）",141,"中华人民共和国居民身份证（法定代表人或负责人）","《公共场所卫生管理条例实施细则》第二十三条","公安部门","数据共享"]
[{"$nulls":3},142,"营业执照","《公共场所卫生管理条例实施细则》第二十三条","市场监管部门","数据共享"]
[{"$nulls":3},143,"中华人民共和国不动产权证书","《公共场所卫生管理条例实施细则》第二十三条","自然资源部门","数据共享/部门核验"]
[{"$nulls":3},144,"公共场所地址方位示意图、平面图和卫生设施平面布局图","《公共场所卫生管理条例实施细则》第二十三条",null,"告知承诺"]
[null,93,"医疗广告审查",145,"医疗机构执业许可证","《医疗广告管理办法》第八条","卫健部门","数据共享/部门核验"]
["随州市医疗保障局",94,"职工参保登记",146,"有效身份证件","《中华人民共和国社会保险法》第二十三条、第二十四条、第二十五条、五十八条；\n《社会保险经办条例》第六条；\n《香港澳门台湾居民在内地（大陆）参加社会保险暂行办法》第二条、第三条、第四条、第十四条；\n《在中国境内就业的外国人参加社会保险暂行办法》第三条、第四条；","公安部门","数据共享"]
[null,95,"职工参保信息变更登记",147,"中华人民共和国社会保障卡（或医保电子凭证、或有效身份证件）","《中华人民共和国社会保险法》第五十七条；\n《社会保险费征缴暂行条例》第九条；\n《社会保险经办条例》第八条、第九条、第十条；","公安部门/人社部门","数据共享"]
[null,96,"基本医疗保险参保人员享受门诊慢特病病种待遇认定",148,"中华人民共和国社会保障卡（或医保电子凭证、或有效身份证件）","《中华人民共和国社会保险法》第二十八条、第二十九条；\n《医疗保障基金使用监督管理条例》第十一条；\n《实施〈中华人民共和国社会保险法〉若干规定》第八条","公安部门/人社部门","数据共享"]
[null,97,"门诊费用报销",149,"中华人民共和国社会保障卡（或医保电子凭证、或有效身份证件）","《中华人民共和国社会保险法》第二十八条、第三十条；\n《社会保险经办条例》第二十条；","公安部门/人社部门","数据共享"]
[null,98,"住院费用报销",150,"中华人民共和国社会保障卡（或医保电子凭证、或有效身份证件）","《中华人民共和国社会保险法》第二十八条、第三十条；\n《社会保险经办条例》第二十条；","公安部门/人社部门","数据共享"]
[null,99,"常驻异地工作人员备案",151,"中华人民共和国社会保障卡（或医保电子凭证、或有效身份证件）","《国家医保局　财政部关于进一步做好基本医疗保险跨省异地就医直接结算工作的通知》（医保发〔2022〕22号）；\n《国家医疗保障局办公室关于印发<全国医疗保障经办政务服务事项清单（2023年版）>的通知》（医保办发〔2023〕24号）；\n《省医疗保障局办公室关于进一步提高异地就医直接结算便捷性的通知》（鄂医保办〔2022〕28号）；\n《省医疗保障局　省财政厅关于进一步做好基本医疗保险异地就医直接结算工作的通知》（鄂医保发〔2022〕81号）；","公安部门/人社部门","数据共享"]
[null,100,"其他临时外出就医人员备案",152,"中华人民共和国社会保障卡（或医保电子凭证、或有效身份证件）","《国家医保局　财政部关于进一步做好基本医疗保险跨省异地就医直接结算工作的通知》（医保发〔2022〕22号）；\n《国家医疗保障局办公室关于印发<全国医疗保障经办政务服务事项清单（2023年版）>的通知》（医保办发〔2023〕24号）；\n《省医疗保障局办公室关于进一步提高异地就医直接结算便捷性的通知》（鄂医保办〔2022〕28号）；\n《省医疗保障局　省财政厅关于进一步做好基本医疗保险异地就医直接结算工作的通知》（鄂医保发〔2022〕81号）；","公安部门/人社部门","数据共享"]
[null,101,"异地安置退休人员备案",153,"中华人民共和国社会保障卡（或医保电子凭证、或有效身份证件）","《国家医保局　财政部关于进一步做好基本医疗保险跨省异地就医直接结算工作的通知》（医保发〔2022〕22号）；\n《国家医疗保障局办公室关于印发<全国医疗保障经办政务服务事项清单（2023年版）>的通知》（医保办发〔2023〕24号）；\n《省医疗保障局办公室关于进一步提高异地就医直接结算便捷性的通知》（鄂医保办〔2022〕28号）；\n《省医疗保障局　省财政厅关于进一步做好基本医疗保险异地就医直接结算工作的通知》（鄂医保发〔2022〕82号）；","公安部门/人社部门","数据共享"]
[null,102,"异地长期居住人员备案",154,"中华人民共和国社会保障卡（或医保电子凭证、或有效身份证件）","《国家医保局　财政部关于进一步做好基本医疗保险跨省异地就医直接结算工作的通知》（医保发〔2022〕22号）；\n《国家医疗保障局办公室关于印发<全国医疗保障经办政务服务事项清单（2023年版）>的通知》（医保办发〔2023〕24号）；\n《省医疗保障局办公室关于进一步提高异地就医直接结算便捷性的通知》（鄂医保办〔2022〕28号）；\n《省医疗保障局　省财政厅关于进一步做好基本医疗保险异地就医直接结算工作的通知》（鄂医保发〔2022〕83号）；","公安部门/人社部门","数据共享"]
[null,103,"异地转诊人员备案",155,"中华人民共和国社会保障卡（或医保电子凭证、或有效身份证件）","《国家医保局　财政部关于进一步做好基本医疗保险跨省异地就医直接结算工作的通知》（医保发〔2022〕22号）；\n《国家医疗保障局办公室关于印发<全国医疗保障经办政务服务事项清单（2023年版）>的通知》（医保办发〔2023〕24号）；\n《省医疗保障局办公室关于进一步提高异地就医直接结算便捷性的通知》（鄂医保办〔2022〕28号）；\n《省医疗保障局　省财政厅关于进一步做好基本医疗保险异地就医直接结算工作的通知》（鄂医保发〔2022〕84号）；","公安部门/人社部门","数据共享"]
[null,104,"参保单位参保信息查询",156,"单位有效证明文件","《国家医保局　财政部关于进一步做好基本医疗保险跨省异地就医直接结算工作的通知》（医保发〔2022〕22号）；\n《国家医疗保障局办公室关于印发<全国医疗保障经办政务服务事项清单（2023年版）>的通知》（医保办发〔2023〕24号）；\n《省医疗保障局办公室关于进一步提高异地就医直接结算便捷性的通知》（鄂医保办〔2022〕28号）；\n《省医疗保障局　省财政厅关于进一步做好基本医疗保险异地就医直接结算工作的通知》（鄂医保发〔2022〕85号）；","市场监管部门","数据共享"]
[null,105,"参保人员参保信息查询",157,"中华人民共和国社会保障卡（或医保电子凭证、或有效身份证件）","《国家医保局　财政部关于进一步做好基本医疗保险跨省异地就医直接结算工作的通知》（医保发〔2022〕22号）；\n《国家医疗保障局办公室关于印发<全国医疗保障经办政务服务事项清单（2023年版）>的通知》（医保办发〔2023〕24号）；\n《省医疗保障局办公室关于进一步提高异地就医直接结算便捷性的通知》（鄂医保办〔2022〕28号）；\n《省医疗保障局　省财政厅关于进一步做好基本医疗保险异地就医直接结算工作的通知》（鄂医保发〔2022〕86号）；","公安部门/人社部门","数据共享"]
[null,106,"参保人员个人账户一次性支取",158,"中华人民共和国社会保障卡（或医保电子凭证、或有效身份证件）","《国家医保局　财政部关于进一步做好基本医疗保险跨省异地就医直接结算工作的通知》（医保发〔2022〕22号）；\n《国家医疗保障局办公室关于印发<全国医疗保障经办政务服务事项清单（2023年版）>的通知》（医保办发〔2023〕24号）；\n《省医疗保障局办公室关于进一步提高异地就医直接结算便捷性的通知》（鄂医保办〔2022〕28号）；\n《省医疗保障局　省财政厅关于进一步做好基本医疗保险异地就医直接结算工作的通知》（鄂医保发〔2022〕87号）；","公安部门/人社部门","数据共享"]
[null,107,"转移接续手续办理",159,"中华人民共和国社会保障卡（或医保电子凭证、或有效身份证件）","《国家医保局　财政部关于进一步做好基本医疗保险跨省异地就医直接结算工作的通知》（医保发〔2022〕22号）；\n《国家医疗保障局办公室关于印发<全国医疗保障经办政务服务事项清单（2023年版）>的通知》（医保办发〔2023〕24号）；\n《省医疗保障局办公室关于进一步提高异地就医直接结算便捷性的通知》（鄂医保办〔2022〕28号）；\n《省医疗保障局　省财政厅关于进一步做好基本医疗保险异地就医直接结算工作的通知》（鄂医保发〔2022〕88号）；","公安部门/人社部门","数据共享"]
[null,108,"产前检查费支付",160,"中华人民共和国社会保障卡（或医保电子凭证、或有效身份证件）","《国家医保局　财政部关于进一步做好基本医疗保险跨省异地就医直接结算工作的通知》（医保发〔2022〕22号）；\n《国家医疗保障局办公室关于印发<全国医疗保障经办政务服务事项清单（2023年版）>的通知》（医保办发〔2023〕24号）；\n《省医疗保障局办公室关于进一步提高异地就医直接结算便捷性的通知》（鄂医保办〔2022〕28号）；\n《省医疗保障局　省财政厅关于进一步做好基本医疗保险异地就医直接结算工作的通知》（鄂医保发〔2022〕89号）；","公安部门/人社部门","数据共享"]
[null,109,"计划生育医疗费支付",161,"中华人民共和国社会保障卡（或医保电子凭证、或有效身份证件）","《国家医保局　财政部关于进一步做好基本医疗保险跨省异地就医直接结算工作的通知》（医保发〔2022〕22号）；\n《国家医疗保障局办公室关于印发<全国医疗保障经办政务服务事项清单（2023年版）>的通知》（医保办发〔2023〕24号）；\n《省医疗保障局办公室关于进一步提高异地就医直接结算便捷性的通知》（鄂医保办〔2022〕28号）；\n《省医疗保障局　省财政厅关于进一步做好基本医疗保险异地就医直接结算工作的通知》（鄂医保发〔2022〕90号）；","公安部门/人社部门","数据共享"]
[null,110,"生育津贴支付",162,"中华人民共和国社会保障卡（或医保电子凭证、或有效身份证件）","《国家医保局　财政部关于进一步做好基本医疗保险跨省异地就医直接结算工作的通知》（医保发〔2022〕22号）；\n《国家医疗保障局办公室关于印发<全国医疗保障经办政务服务事项清单（2023年版）>的通知》（医保办发〔2023〕24号）；\n《省医疗保障局办公室关于进一步提高异地就医直接结算便捷性的通知》（鄂医保办〔2022〕28号）；\n《省医疗保障局　省财政厅关于进一步做好基本医疗保险异地就医直接结算工作的通知》（鄂医保发〔2022〕91号）；","公安部门/人社部门","数据共享"]
[null,{"$f":"MAX($B$2:XFD164)+1","v":111},"生育医疗费支付",{"$f":"MAX($D$2:XFD164)+1","v":163},"中华人民共和国社会保障卡（或医保电子凭证、或有效身份证件）","《国家医保局　财政部关于进一步做好基本医疗保险跨省异地就医直接结算工作的通知》（医保发〔2022〕22号）；\n《国家医疗保障局办公室关于印发<全国医疗保障经办政务服务事项清单（2023年版）>的通知》（医保办发〔2023〕24号）；\n《省医疗保障局办公室关于进一步提高异地就医直接结算便捷性的通知》（鄂医保办〔2022〕28号）；\n《省医疗保障局　省财政厅关于进一步做好基本医疗保险异地就医直接结算工作的通知》（鄂医保发〔2022〕92号）；","公安部门/人社部门","数据共享"]
[null,112,"医保服务事项查询及咨询服务",164,"有效身份证件或医保电子凭证或社会保障卡","《国家医保局　财政部关于进一步做好基本医疗保险跨省异地就医直接结算工作的通知》（医保发〔2022〕22号）；\n《国家医疗保障局办公室关于印发<全国医疗保障经办政务服务事项清单（2023年版）>的通知》（医保办发〔2023〕24号）；\n《省医疗保障局办公室关于进一步提高异地就医直接结算便捷性的通知》（鄂医保办〔2022〕28号）；\n《省医疗保障局　省财政厅关于进一步做好基本医疗保险异地就医直接结算工作的通知》（鄂医保发〔2022〕93号）；","公安部门/人社部门","数据共享"]
["随州市应急管理局",113,"危险化学品（含仓储）经营许可变更",165,"营业执照（变更后）","《危险化学品经营许可证管理办法》第十四条","市场监管部门","数据共享"]
[{"$nulls":3},166,"安全生产知识和管理能力考核合格证（变更后的主要负责人）","《危险化学品经营许可证管理办法》第十四条","应急部门","数据共享"]
[null,114,"危险化学品（含仓储）经营许可延期",167,"营业执照或者预先核准文件","《危险化学品经营许可证管理办法》第九条、第十八条","市场监管部门","数据共享"]
[{"$nulls":3},168,"中华人民共和国特种作业操作证","《危险化学品经营许可证管理办法》第九条、第十八条","应急部门","数据共享"]
[{"$nulls":3},169,"企业主要负责人、安全生产管理人员安全生产知识和管理能力考核合格证及其他从业人员培训合格的证明材料","《危险化学品经营许可证管理办法》第九条、第十八条","应急部门","数据共享"]
["随州市住房和城市更新局",115,"存量房交易网签备案",170,"中华人民共和国居民身份证","\n《中华人民共和国城市房地产管理法》第三十五条、第四十一条、第五十条\n关于进一步规范和加强房屋网签备案工作的指导意见\n住房城乡建设部办公厅关于印发《房屋交易与产权管理工作导则》的通知\n","公安部门","数据共享"]
[{"$nulls":3},171,"中华人民共和国不动产权证书","\n《中华人民共和国城市房地产管理法》第三十五条、第四十一条、第五十条\n关于进一步规范和加强房屋网签备案工作的指导意见\n住房城乡建设部办公厅关于印发《房屋交易与产权管理工作导则》的通知\n","自然资源部门","数据共享/部门核验"]
[null,172,"新建商品房交易合同网签备案",172,"中华人民共和国居民身份证","《中华人民共和国城市房地产管理法》第四十五条、第五十条\n《城市商品房预售管理办法》第六条、第十条、第十四条","公安部门","数据共享"]
["随州市司法局",173,"基层法律服务工作者执业登记",173,"基层法律服务工作者执业资格证书或者参加省级司法行政机关组织的执业核准考试合格证明","《基层法律服务工作者管理办法》第十条","司法行政部门","数据共享"]
[{"$nulls":3},174,"申请人的身份证明","《基层法律服务工作者管理办法》第十条","公安部门","数据共享"]
[null,175,"基层法律服务工作者变更执业机构登记",175,"基层法律服务工作者执业证","《基层法律服务工作者管理办法》第十五条","司法行政部门","数据共享"]
[null,176,"基层法律服务工作者执业注销",176,"基层法律服务工作者执业证","《基层法律服务工作者管理办法》第十六条","司法行政部门","数据共享"]
["随州市交通运输局",177,"对客货运输车辆的年度审验（货运车辆）",177,"中华人民共和国机动车行驶证","《道路货物运输及站场管理规定》第五十条","公安部门","数据共享"]
[{"$nulls":3},178,"中华人民共和国道路运输证","《道路货物运输及站场管理规定》第五十条","交通运输部门","数据共享"]
[null,179,"经营性道路货物运输驾驶员从业资格证的换发（使用总质量4500千克及以下普通货运车辆的驾驶人员除外）",179,"中华人民共和国机动车驾驶证","《道路运输从业人员管理规定》第十条","公安部门","数据共享"]
["随州市教育局",180,"市属中等职业学校毕业证书证明服务",180,"中华人民共和国居民身份证","《中等职业学校学生学籍管理办法》第三十五条“毕业证书由国家教育行政部门统一格式并监制，省级教育行政部门统一印制，学校颁发。采用弹性学习形式的学生毕业证书应当注明学习形式和修业时间。”","公安部门","数据共享"]
["随州市委宣传部",181,"从事其他印刷品印刷经营活动企业（不含外资企业）设立、变更、兼并、合并、分立",181,"法定代表人身份证","《印刷业管理条例》第九条","公安部门","数据共享"]
[{"$nulls":3},182,"营业执照","《印刷业管理条例》第九条","市场监管部门","数据共享"]
["随州市文化和旅游局",183,"高危险性体育项目经营许可",183,"中华人民共和国居民身份证","《经营高危险性体育项目许可管理办法》第八条","公安部门","数据共享"]
["随州市人力资源和社会保障局",184,"【省集中企保系统】伤残待遇申领（一次性伤残补助金、一次性工伤医疗补助金、伤残津贴和生活护理费）",184,"中华人民共和国居民身份证","《工伤保险条例》第三十条、第三十五条、第三十六条、第三十七条\n《湖北省工伤保险实施办法》第三十四条、第三十六条","公安部门","数据共享"]
[null,185,"劳动者申请立案",185,"中华人民共和国居民身份证","《劳动人事争议仲裁办案规则》第二十九条","公安部门","数据共享"]
[null,186,"社会保障卡服务（注销）",186,"有效身份证件","《中华人民共和国社会保障卡管理办法》第三条、第十九条\n关于印发《湖北省社会保障卡业务经办规程》的通知(鄂人社办发[2022]24号)","公安部门","数据共享"]
[null,187,"职业指导",187,"中华人民共和国居民身份证","关于印发《湖北省社会保障卡业务经办规程》的通知(鄂人社办发[2022]24号)","公安部门","数据共享"]
[null,188,"职业介绍",188,"中华人民共和国居民身份证","关于印发《湖北省社会保障卡业务经办规程》的通知(鄂人社办发[2022]24号)","公安部门","数据共享"]
[null,189,"专业技术人员起点职务认定",189,"中华人民共和国居民身份证","《职称评审管理暂行规定》第十三条\n关于印发〈专业技术资格评定试行办法〉的通知","公安部门","数据共享"]